Cogmind - Beta 13 @@@ ROGUE MODE // 2024.06.16 @ 18:39:29 Player: Occam Result: Destroyed by Y-45 Defender with Beam Rifle Performance ------------- Evolutions (0) 0 Regions Visited (2) 400 Robots Destroyed (36) 180 Value Destroyed (737) 737 Prototype IDs (1) 20 Alien Tech Used (0) 0 Bonus (0) 0 TOTAL SCORE: 1337 Bonus ------- None Cogmind --------- Core Integrity 0/250 Matter 270/300 Energy 234/250 System Corruption 2% Temperature Cool (45) Movement Rolling (175) Ox5 Location -10/Mines Parts ------- > --- POWER (1) -------- Ion Engine > --- PROPULSION (2) --- Light Treads Compact Wheel > --- UTILITY (2) ------ Improved Heat Sink Huge Storage Unit > --- WEAPON (2) ------- Particle Gun Beamcaster > --- INVENTORY (25) --- Ion Engine Light Nuclear Core Aluminum Leg Compact Wheel Improved Heat Sink High-capacity Storage Unit Medium Matter Pod (100) Medium Matter Pod (100) Structural Scanner Structural Scanner Structural Scanner Experimental Sensor Array Seismic Detector Seismic Detector ECM Suite Light Armor Plating Hacking Suite Small Laser Light Assault Rifle Light Assault Rifle Grenade Launcher Grenade Launcher Datajack Mining Laser Peak State ------------ > --- POWER ------------ Ion Engine > --- PROPULSION ------- Light Treads Compact Wheel > --- UTILITY ---------- Huge Storage Unit Experimental Sensor Array > --- WEAPON ----------- Particle Gun Light Assault Rifle > --- INVENTORY -------- Ion Engine Light Nuclear Core Compact Wheel Compact Wheel Improved Heat Sink High-capacity Storage Unit Medium Matter Pod Medium Matter Pod Structural Scanner Structural Scanner Structural Scanner Seismic Detector ECM Suite Light Armor Plating Hacking Suite Small Laser Light Assault Rifle Grenade Launcher Grenade Launcher Datajack Mining Laser [Rating: 18] Favorites ----------- Power Ion Engine Engine Ion Engine Propulsion Light Treads Treads Light Treads Leg Aluminum Leg Wheel Compact Wheel Utility Structural Scanner Device Structural Scanner Storage Huge Storage Unit Weapon Assault Rifle Energy Gun Particle Gun Ballistic Gun Assault Rifle Launcher Grenade Launcher Special Melee Weapon Datajack Build | -11 -10 -10 ------- Run | Yrd Mat Min Slots Evolved . | . . . Power . | . . . Propulsion . | . . . Utility . | . . . Weapon . | . . . Parts Attached 35 | 2 19 14 Power 3 | . 2 1 Engine 3 | . 2 1 Core . | . . . Reactor . | . . . Propulsion 12 | . 8 4 Treads 7 | . 5 2 Leg 1 | . . 1 Wheel 4 | . 3 1 Hover . | . . . Flight . | . . . Utility 8 | 1 4 3 Device 6 | 1 2 3 Storage 2 | . 2 . Processor . | . . . Hackware . | . . . Protection . | . . . Artifact . | . . . Weapon 12 | 1 5 6 Energy Gun 3 | . . 3 Energy Cannon . | . . . Ballistic Gun 6 | 1 3 2 Ballistic Cannon . | . . . Launcher 2 | . 1 1 Special Weapon . | . . . Impact Weapon . | . . . Slashing Weapon . | . . . Piercing Weapon . | . . . Special Melee Weapon 1 | . 1 . Unidentified Prototypes 1 | . . 1 Parts Lost 5 | . . 5 Power 1 | . . 1 Propulsion 2 | . . 2 Utility . | . . . Weapon 2 | . . 2 Highest Loss Streak 4 | . . 4 To Critical Strikes . | . . . Average Slot Usage (%) 99 | . 99 98 Engine 13 | . 14 13 Treads 18 | . 20 13 Leg 1 | . 1 . Wheel 7 | . 5 13 Device 14 | . 14 14 Storage 14 | . 14 14 Energy Gun 4 | . . 18 Ballistic Gun 23 | . 27 9 Naked Turns . | . . . Heaviest Build 94 | 15 90 94 Greatest Support 40 | 20 40 16 Greatest Overweight (x) 5 | . 5 5 Average Overweight (x) 2 | . 1 5 Largest Inventory Capacity 25 | 8 25 25 Average Capacity 18 | 8 17 25 Most Carried 24 | 6 24 24 Average Carried 16 | 6 15 21 Final Capacity 25 | 8 25 25 Final Carried 24 | 6 24 24 Class Distribution -------------------- 89% | Mutant 10% | Scavenger-Mutant Dominant Class ---------------- Mutant | -10/Materials Mutant | -10/Mines Resources | -11 -10 -10 ----------- Run | Yrd Mat Min Matter Collected 1404 | 271 902 231 Remotely . | . . . Salvage Created 1255 | 178 808 269 Parts 77 | 11 57 9 Haulers Intercepted 2 | . 2 . Recyclers Shooed 4 | . 4 . Parts Field Recycled . | . . . Retrieved Matter . | . . . Parts Self-Destructed . | . . . Prevented . | . . . Kills | -11 -10 -10 ------- Run | Yrd Mat Min Combat Hostiles Destroyed 23 | . 14 9 Guns 18 | . 14 4 AOE 5 | . . 5 Classes Destroyed 10 | 2 7 1 Worker 2 | . 2 . Builder 2 | . 2 . Tunneler 7 | 4 1 2 Hauler 2 | . 2 . Recycler 1 | 1 . . Operator 2 | . 2 . Watcher 2 | . 2 . Swarmer 3 | . 3 . Grunt 15 | . 11 4 Assembled 5 | . . 5 Best Kill Streak 7 | 3 4 7 Combat Bots Only 7 | . 3 7 Max Kills in Single Turn 4 | 1 1 4 Gunslinging . | . . . Exploded 4 | . . 4 Melee . | . . . Uniques/NPCs Destroyed . | . . . Combat | -11 -10 -10 -------- Run | Yrd Mat Min Hostile Shots Fired 81 | . 53 28 Missed 20 | . 18 2 Damage Taken 975 | . 427 548 Core 251 | . 62 189 Absorbed by Shields . | . . . Regen/Repaired (Parts) 85 | . 85 . Core Remaining (%) 100 | 100 . . Volleys Fired 120 | 9 83 28 Largest 2 | 2 2 2 Hottest 140 | 60 40 140 Shots Fired 233 | 18 161 54 Gun 229 | 18 159 52 Cannon . | . . . Launcher 4 | . 2 2 Special . | . . . Kinetic 213 | 17 159 37 Thermal 16 | 1 . 15 Explosive 4 | . 2 2 Electromagnetic . | . . . Robot Hit Streak 11 | 9 11 6 Robot Miss Streak 4 | 2 3 4 Penetration Max . | . . . Secondary Targets 2 | . 1 1 Max Gunslinging Chain 1 | . 1 1 Shots Hit Robots 149 | 14 103 32 Core Hits 80 | 5 46 29 Critical Kills . | . . . Critical Parts Destroyed 1 | . . 1 Critical Strikes 3 | . . 3 Burn 2 | . . 2 Destroy 1 | . . 1 Melee Attacks . | . . . Impact . | . . . Slashing . | . . . Piercing . | . . . Sneak Attacks . | . . . Combat Hostiles . | . . . Follow-up Attacks . | . . . Damage Inflicted 2216 | 177 1288 751 Guns 1906 | 177 1288 441 Cannons . | . . . Explosions 310 | . . 310 Melee . | . . . Ramming . | . . . Kinetic 1761 | 165 1288 308 Thermal 145 | 12 . 133 Explosive 310 | . . 310 Electromagnetic . | . . . Impact . | . . . Slashing . | . . . Piercing . | . . . Highest Corruption 2 | . 2 2 Average Corruption 1 | . 1 2 Corruption Purged . | . . . Corruption Blocked . | . . . Effects 21 | . 18 3 Message Errors 3 | . 1 2 Matter Fused 5 | . 5 . Energy Discharges 1 | . 1 . Parts Rejected 2 | . 2 . Data Loss (minor) 6 | . 5 1 Data Loss (major) 2 | . 2 . Weapon Failures 2 | . 2 . Overload Shots . | . . . Overflow Damage . | . . . Projectiles . | . . . Explosions . | . . . Melee . | . . . Knockbacks . | . . . Impact . | . . . Kinetic . | . . . Secondary . | . . . Self-Inflicted Damage 33 | . 8 25 Shots 2 | . 1 1 Rammed . | . . . Targets Rammed . | . . . Kicked . | . . . Crushed . | . . . Highest Temperature 156 | . 2 156 Average Temperature 43 | . 2 49 Received Heat Transfer 410 | . 225 185 Siege Activations . | . . . Robots Corrupted . | . . . Combat Hostiles . | . . . Parts Fried . | . . . Impact Corruptions . | . . . Robots Melted . | . . . Combat Hostiles . | . . . Parts Melted 1 | . . 1 Heat Transferred 469 | 25 . 444 Parts Sabotaged . | . . . Parts Stolen . | . . . Parts Stripped . | . . . Power Chain Reactions . | . . . Alert | -11 -10 -10 ------- Run | Yrd Mat Min Peak Influence 221 | 25 221 173 Initial 16 | . 16 7 Average 74 | 13 74 81 Maximum Alert Level 1 | . 1 . Low Security (%) 96 | 100 95 100 Level 1 3 | . 4 . Level 2 . | . . . Level 3 . | . . . Level 4 . | . . . Level 5 . | . . . High Security . | . . . Max Security . | . . . Squads Dispatched 4 | . 4 . Investigation 3 | . 3 . Extermination . | . . . Reinforcement 1 | . 1 . Assault . | . . . Garrison . | . . . Intercept . | . . . Searches Triggered . | . . . Construction Impeded . | . . . Haulers Reinforced . | . . . Active Scanning Responses . | . . . Cargo Convoy Interrupts . | . . . Stealth | -11 -10 -10 --------- Run | Yrd Mat Min Distress Signals 1 | . 1 . Communications Jammed . | . . . Distress Signals . | . . . Times Spotted 44 | . 23 21 Peak Tracking Total 10 | . 4 10 Tactical Retreats 4 | . . 4 Traps | -11 -10 -10 ------- Run | Yrd Mat Min Traps Triggered 2 | . 2 . Indirectly . | . . . Trap Hack Attempts 26 | . 26 . Triggered . | . . . Disarmed . | . . . Reprogrammed 2 | . 2 . Reused . | . . . Traps Extracted . | . . . Installed . | . . . Triggered . | . . . Machines | -11 -10 -10 ---------- Run | Yrd Mat Min Machines Disabled 1 | . . 1 Max in Single Turn 1 | . . 1 Machines Repaired . | . . . Machines Dismantled . | . . . Machines Sabotaged . | . . . Overloaded Fab Kills . | . . . Hacking | -11 -10 -10 --------- Run | Yrd Mat Min Machines Accessed 8 | . 8 . Terminals 7 | . 7 . Fabricators . | . . . Repair Stations 1 | . 1 . Recycling Units . | . . . Scanalyzers . | . . . Garrison Access . | . . . Total Hacks 27 | . 27 . Successful 8 | . 8 . Failed 19 | . 19 . Catastrophic 3 | . 3 . Database Lockouts . | . . . Manual 22 | . 22 . Terminals 24 | . 24 . Fabricators . | . . . Repair Stations 3 | . 3 . Recycling Units . | . . . Scanalyzers . | . . . Garrison Access . | . . . Terminal Hacks 4 | . 4 . Part Schematic 1 | . 1 . Robot Analysis 1 | . 1 . Terminal Index 1 | . 1 . Locate Traps 1 | . 1 . Fabricator Hacks . | . . . Repair Station Hacks 2 | . 2 . Scan Component 1 | . 1 . Repair 1 | . 1 . Recycling Unit Hacks . | . . . Scanalyzer . | . . . Garrison Access Hacks . | . . . Unauthorized Hacks 2 | . 2 . Terminals 2 | . 2 . Botnet 2 | . 2 . Fabricators . | . . . Repair Stations . | . . . Recycling Units . | . . . Scanalyzers . | . . . Garrison Access . | . . . Data Cores Recovered . | . . . Used . | . . . Hacking Detections 8 | . 8 . Full Trace Events 6 | . 6 . Feedback Events . | . . . Feedback Blocked . | . . . Robot Schematics Acquired . | . . . Robots Built . | . . . Authchips . | . . . Time . | . . . Total Robot Build Rating . | . . . Part Schematics Acquired 1 | . 1 . Parts Built . | . . . Authchips . | . . . Time . | . . . Total Part Build Rating . | . . . Parts Repaired 1 | . 1 . Time 13 | . 13 . Parts Recycled . | . . . Recycled Matter . | . . . Retrieved Matter . | . . . Retrieved Components . | . . . Parts Scanalyzed . | . . . Part Schematics Acquired . | . . . Parts Damaged . | . . . Bothacking | -11 -10 -10 ------------ Run | Yrd Mat Min Used RIF Installer . | . . . Robots Hacked . | . . . Non-combat . | . . . Combat . | . . . Robot Hacks Applied . | . . . Relay Couplers Released . | . . . Fabnet Peak Effective % . | . . . Robots Rewired . | . . . Allies Hacked . | . . . Hacks Repelled . | . . . Allies | -11 -10 -10 -------- Run | Yrd Mat Min Total Allies . | . . . Largest Group . | . . . Highest-Rated Group . | . . . Highest-Rated Ally . | . . . Total Orders . | . . . Ally Attacks . | . . . Total Damage . | . . . Kills . | . . . Allies Corrupted . | . . . Allies Melted . | . . . Intel | -11 -10 -10 ------- Run | Yrd Mat Min Robot Analysis Total 1 | . 1 . Derelict Logs Recovered . | . . . Drone Launches . | . . . Drone Recoveries . | . . . Exploration | -11 -10 -10 ------------- Run | Yrd Mat Min Turns Passed 2272 | 91 1665 516 Spaces Moved 1047 | 34 792 221 Core . | . . . Treads 409 | . 409 . Legs 114 | 34 80 . Wheels 524 | . 303 221 Hover . | . . . Flight . | . . . Fastest Speed 120 | 120 120 175 Average Speed 163 | 120 161 175 Slowest Speed 240 | 120 240 175 Overloaded Moves . | . . . Propulsion Burnouts . | . . . Robots Hopped . | . . . Cave-ins Triggered . | . . . Exploration Rate (%) 48 | 3 97 44 Regions Visited 2 Branch Regions 1 Pre-discovered Areas . | . . . Known Exits Taken . | . . . Unknown Exits Taken 2 | 1 1 . Scrap Searched . | . . . Spaces Dug 20 | . 14 6 Terrain Destroyed 26 | . 14 12 Melee . | . . . Projectile 1 | . . 1 AOE 25 | . 14 11 Terrain Rammed . | . . . Walls Destroyed . | . . . Machines Disabled . | . . . Actions | -11 -10 -10 --------- Run | Yrd Mat Min Total 1374 | 65 1013 296 Wait 106 | 21 58 27 Move 1045 | 33 791 221 Hop . | . . . Pick Up 26 | . 24 2 Fast Attach 7 | 1 3 3 Attach 9 | . 3 6 Detach 7 | . 3 4 Swap 19 | 1 13 5 Drop 9 | . 9 . Fire 120 | 9 83 28 Melee . | . . . Ram . | . . . Kick . | . . . Crush . | . . . Escape Stasis . | . . . Rewire . | . . . Trap 26 | . 26 . Miscellaneous . | . . . Route ------- -11/Scrapyard -10/Materials (discovered 5 exits: [*Mat x3] / [*Min x2]) -10/Mines (discovered 1 exit: [*Sub]) History --------- Turn | Location | Event 12 | -11/Scrapyard | Discovered new exit (range 3) 92 | -11/Scrapyard | Entered Materials 183 | -10/Materials | Discovered new exit (range 16) 302 | -10/Materials | Build established: Mutant 359 | -10/Materials | Discovered new exit (range 16) 876 | -10/Materials | Discovered new exit (range 15) 981 | -10/Materials | Discovered new exit (range 5) 1060 | -10/Materials | Repaired Assault Rifle 1397 | -10/Materials | Discovered new exit (range 16) 1757 | -10/Materials | Entered Mines 1758 | -10/Mines | Assembled infested the area 1775 | -10/Mines | Core integrity fell below 50% 1794 | -10/Mines | Destroyed 7 combat bots 1812 | -10/Mines | Met 8R-AWN 1856 | -10/Mines | Lost 4 parts (1p1n2w) 1941 | -10/Mines | Found a damaged Exp. Sensor Array with a note attached 1946 | -10/Mines | Found Prototype Device 1946 | -10/Mines | Identified Exp. Sensor Array 2005 | -10/Mines | Core integrity fell below 20% 2147 | -10/Mines | Discovered new exit (range 6) 2273 | -10/Mines | Destroyed by Y-45 Defender with Beam Rifle Last Messages --------------- 02015_ 58-82K(g) destroyed. 02023_ Com. Wheel destroyed. 02026_ G-47 Trooper suffers critical hit (Burn). 02029_ Particle Gun melted. 02029_ G-47 Trooper destroyed. 02032_ Acquired 29 matter. 02036_ Acquired Beamcaster. 02038_ Acquired 10 matter. 02041_ Acquired Imp. Heat Sink. 02058_ Acquired 10 matter. 02090_ T-07 Excavator is excavating. 02147_ EXIT=FOUND 02151_ T-07 Excavator destroyed. 02157_ Acquired Seismic Detector. 02163_ T-07 Excavator destroyed. 02190_ G-34 Mercenary destroyed. 02206_ Acquired Unknown Leg. 02206_ Identified Aluminum Leg. 02214_ U3%3I|6AHB >,:BCJVS4ZYZ 02247_ K-01 Serf collects debris. Map ----- +----------------------------------------------------+ | ?## ##????????????????????????????## | | ??##### ######???????????????????????## | | ??????## ##??????????????????????### | | ???????# #??????????????????????##"# | | ???????## ##?????????????????????#### # | | ????????#### #??????????????????####### # | | ???????????## #??????????????????####### # | | ????#####???# #??????????????????## ## | | ????#<# ##?## ##??????????????????### = | | ????# ### ##??????????????######### | | ????###% ##??????????????# ####### | | ??????#*% ####???????????# #### ####### | | ??????# ####### *% ##??????????# #??# #?????? | | ???##?####?????## ######?????# #??# ##????? | | ??## #???????## #?????# #?## ##???? | | ??# ##????# #### ####### #?# #???? | | ??# #### #??# % %#?# ##??# | | ???# #??# #########?# #### | | ???# #??# #?????????## | | ???# ##### # ### ###????????## | | ???# ???????# ## ## #######???# | | ??????????????# ##### ??# # | | ?????????????## ##!!## ?????# ## | | ????????????## #"!! # #????????## ## | | ??????????### #Y + #????????? ## #? | | ???????#### #Y ;@ #??????????### #? | | ???????# ##"![ # #??????????### #? | | ???????# ###!??# ##????????????# ? | | ???????# ##???# ##?????????????# ? | | ???????# ##??# ## #??????????????##### | | ???????# #### #? #??????????????????? | | ???????## #??#??????????????????? | | ????????## #?????????????????????? | | ?????????# ### #####?????????????????????? | | ?????????# ##?# #?????????????????????????? | | ????????# ##??# #?????????????????????????? | | ????????# #???# ?????????????????????????? | | ???????# ???# #?????????????????????????? | | ?????? ???# ?????????????????????????? | | ????? ??? ?????????????????????????? | | ????? ??? ?????????????????????????? | | ????? ??? ?????????????????????????? | | ??????# ??? ?????????????????????????? | | ????????? ???? ?????????????????????????? | | ???????????? ????? ##?????????????????????????? | | ?????????????????? ???????????????????????????? | | ??????????????????#???????????????????????????? | | ??????????????????????????????????????????????? | | ??????????????????????????????????????????????? | | ??????????????????????????????????????????????? | +----------------------------------------------------+ Best States ------------- Heat Dissipation 39 Energy Generation 10 Energy Capacity 250 Matter Stores 300 Matter Capacity 300 Sight Range 16 Terrain Scan Density 10 Evasion (%) 55 Recoil Reduction 2 Item Schematics ----------------- Huge Storage Unit | -10/Materials | Hacked Robot Schematics ------------------ None Fabricated ------------ Nothing Alien Tech Used ----------------- None Achievements -------------- None Challenges ------------ None Game ------ Seed SpikedLauncherExoskeleton Manual? 0 Play Time 00:19:50 Cumulative 356.9 hours Start 2024.06.16 @ 18:12:12 End 2024.06.16 @ 18:39:29 Sessions 1 Manual Loads 0 Difficulty Rogue Special Mode None Game No. 212 Rogue 68 Adventurer 144 Explorer 0 Win Type - Total 4 Types 2/0/1/1/0/0/0/0/0 Lore% 69 Gallery% 80 Achievement% 65 Wizard Run 0 Options --------- Layout 0 ASCII 0 Keyboard 0 Movement Mouse Keybinds 0 Fullscreen 2 Font 20/SmallcapsGlow Map View 66x50 Zoom Use 0% Tactical HUD 1 Map Filters NONE Filters NONE Steam X RUN: 358c7d28-769e-43fc-9e7b-41de5feac888